[Event "Live Chess"]
[Site "Chess.com"]
[Date "2024.06.01"]
[Round "-"]
[White "dhairyapandyauk"]
[Black "LanceMaster23"]
[Result "0-1"]
[WhiteElo "1645"]
[BlackElo "1830"]
[TimeControl "300"]
[EndTime "12:48:46 PDT"]
[Termination "LanceMaster23 won on time"]

1. e4 {[%clk 0:04:57.9]} 1... c6 {[%clk 0:04:57.8]} 2. d4 {[%clk 0:04:57.1]}
2... d5 {[%clk 0:04:56.8]} 3. exd5 {[%clk 0:04:56.8]} 3... cxd5 {[%clk
0:04:56.7]} 4. Bf4 {[%clk 0:04:55.9]} 4... Nf6 {[%clk 0:04:54.7]} 5. Nc3 {[%clk
0:04:55.4]} 5... Bf5 {[%clk 0:04:50.6]} 6. Bd3 {[%clk 0:04:53.3]} 6... Bxd3
{[%clk 0:04:48.9]} 7. Qxd3 {[%clk 0:04:52.9]} 7... e6 {[%clk 0:04:47.8]} 8. Nge2
{[%clk 0:04:52.4]} 8... Bd6 {[%clk 0:04:46.5]} 9. O-O {[%clk 0:04:49.6]} 9...
O-O {[%clk 0:04:44.6]} 10. Rae1 {[%clk 0:04:47]} 10... a6 {[%clk 0:04:42.8]} 11.
Bxd6 {[%clk 0:04:45.8]} 11... Qxd6 {[%clk 0:04:41.7]} 12. f4 {[%clk 0:04:45.5]}
12... Nbd7 {[%clk 0:04:39.5]} 13. Ng3 {[%clk 0:04:44.1]} 13... b5 {[%clk
0:04:35.4]} 14. f5 {[%clk 0:04:43.3]} 14... e5 {[%clk 0:04:23.4]} 15. dxe5
{[%clk 0:04:39]} 15... Nxe5 {[%clk 0:04:23.3]} 16. Qd4 {[%clk 0:04:32.1]} 16...
Rfe8 {[%clk 0:04:02.5]} 17. Nge4 {[%clk 0:04:29.7]} 17... Nxe4 {[%clk
0:03:18.9]} 18. Nxe4 {[%clk 0:04:09.3]} 18... Qc6 {[%clk 0:03:06.5]} 19. Nc3
{[%clk 0:03:43.8]} 19... Nc4 {[%clk 0:02:41.7]} 20. Nxd5 {[%clk 0:03:28.6]}
20... Nxb2 {[%clk 0:01:10.9]} 21. Ne7+ {[%clk 0:03:20]} 21... Rxe7 {[%clk
0:01:09.9]} 22. Rxe7 {[%clk 0:03:19.2]} 22... Qxc2 {[%clk 0:01:08.8]} 23. Qd7
{[%clk 0:03:09.3]} 23... Rf8 {[%clk 0:00:58.7]} 24. Rfe1 {[%clk 0:03:00.9]}
24... Nd3 {[%clk 0:00:55.6]} 25. Qa7 {[%clk 0:01:03.6]} 25... Nxe1 {[%clk
0:00:42.4]} 26. Rxe1 {[%clk 0:01:03.1]} 26... Qxa2 {[%clk 0:00:40.9]} 27. Qd7
{[%clk 0:00:55.3]} 27... b4 {[%clk 0:00:37.1]} 28. Re8 {[%clk 0:00:51.3]} 28...
Qa1+ {[%clk 0:00:28.4]} 29. Kf2 {[%clk 0:00:50.2]} 29... Qf6 {[%clk 0:00:17]}
30. Rxf8+ {[%clk 0:00:26.6]} 30... Kxf8 {[%clk 0:00:16.9]} 31. Qc8+ {[%clk
0:00:25.4]} 31... Ke7 {[%clk 0:00:16.2]} 32. Qc7+ {[%clk 0:00:24.4]} 32... Ke8
{[%clk 0:00:15.5]} 33. Qc8+ {[%clk 0:00:23.5]} 33... Qd8 {[%clk 0:00:15]} 34.
Qc6+ {[%clk 0:00:18.1]} 34... Qd7 {[%clk 0:00:14.6]} 35. Qa8+ {[%clk 0:00:17.1]}
35... Ke7 {[%clk 0:00:13.9]} 36. Qe4+ {[%clk 0:00:16.2]} 36... Kf6 {[%clk
0:00:13.5]} 37. Qh4+ {[%clk 0:00:13.2]} 37... Ke5 {[%clk 0:00:12.5]} 38. Qg3+
{[%clk 0:00:11.5]} 38... Kd5 {[%clk 0:00:10.5]} 39. Qd3+ {[%clk 0:00:10.2]}
39... Kc6 {[%clk 0:00:09.1]} 40. Qc4+ {[%clk 0:00:09.4]} 40... Kd6 {[%clk
0:00:07.1]} 41. Qxb4+ {[%clk 0:00:08.4]} 41... Kc7 {[%clk 0:00:05.7]} 42. Qc5+
{[%clk 0:00:06.4]} 42... Kd8 {[%clk 0:00:05.6]} 43. Qf8+ {[%clk 0:00:04.4]}
43... Kc7 {[%clk 0:00:05]} 44. Qc5+ {[%clk 0:00:03]} 44... Qc6 {[%clk
0:00:04.9]} 0-1

[Event "Live Chess"]
[Site "Chess.com"]
[Date "2024.06.01"]
[Round "-"]
[White "missedJariChance"]
[Black "WorcesterYork"]
[Result "0-1"]
[WhiteElo "1341"]
[BlackElo "2498"]
[TimeControl "300"]
[EndTime "12:49:07 PDT"]
[Termination "WorcesterYork won by resignation"]

1. b3 {[%clk 0:04:55.3]} 1... c5 {[%clk 0:04:59.9]} 2. Bb2 {[%clk 0:04:50.9]}
2... Nc6 {[%clk 0:04:59.8]} 3. Nf3 {[%clk 0:04:49.2]} 3... d5 {[%clk 0:04:59.7]}
4. e3 {[%clk 0:04:48]} 4... Bg4 {[%clk 0:04:59.6]} 5. Be2 {[%clk 0:04:46.4]}
5... Nf6 {[%clk 0:04:59.5]} 6. O-O {[%clk 0:04:43.3]} 6... e6 {[%clk 0:04:59.4]}
7. h3 {[%clk 0:04:41.3]} 7... Bxf3 {[%clk 0:04:59.3]} 8. Bxf3 {[%clk 0:04:40]}
8... Bd6 {[%clk 0:04:59.2]} 9. c4 {[%clk 0:04:32.1]} 9... O-O {[%clk 0:04:59.1]}
10. cxd5 {[%clk 0:04:24.1]} 10... exd5 {[%clk 0:04:56.7]} 11. Nc3 {[%clk
0:04:22.9]} 11... Be5 {[%clk 0:04:55.1]} 12. d4 {[%clk 0:04:13.9]} 12... cxd4
{[%clk 0:04:53.4]} 13. exd4 {[%clk 0:04:04.8]} 13... Bxd4 {[%clk 0:04:53.3]} 14.
Na4 {[%clk 0:04:01.3]} 14... Bxb2 {[%clk 0:04:37.1]} 15. Nxb2 {[%clk 0:03:58.6]}
15... Re8 {[%clk 0:04:36.4]} 16. Qd3 {[%clk 0:03:50.6]} 16... Qd6 {[%clk
0:04:35]} 17. Rad1 {[%clk 0:03:44]} 17... Rad8 {[%clk 0:04:34.6]} 18. Qb5 {[%clk
0:03:35.5]} 18... b6 {[%clk 0:04:32.7]} 19. Rc1 {[%clk 0:03:12.3]} 19... Ne5
{[%clk 0:04:31.5]} 20. Be2 {[%clk 0:03:03.7]} 20... h6 {[%clk 0:04:28.7]} 21.
Rfd1 {[%clk 0:02:59.2]} 21... Qe6 {[%clk 0:04:25]} 22. Bf1 {[%clk 0:02:43.6]}
22... Ng6 {[%clk 0:04:20.7]} 23. Rc7 {[%clk 0:02:39.5]} 23... a5 {[%clk
0:04:19]} 24. Rdc1 {[%clk 0:02:20.9]} 24... Ne4 {[%clk 0:04:17.4]} 25. Qd3
{[%clk 0:02:07.3]} 25... Qe5 {[%clk 0:03:57.7]} 26. R7c6 {[%clk 0:01:52.4]}
26... Qxb2 {[%clk 0:03:55.8]} 27. Rxb6 {[%clk 0:01:42.3]} 27... Qxf2+ {[%clk
0:03:54.5]} 0-1

[Event "Live Chess"]
[Site "Chess.com"]
[Date "2024.06.01"]
[Round "-"]
[White "cymbalshift"]
[Black "nigelst"]
[Result "1-0"]
[WhiteElo "1764"]
[BlackElo "1642"]
[TimeControl "300"]
[EndTime "12:49:13 PDT"]
[Termination "cymbalshift won by resignation"]

1. d4 {[%clk 0:04:58.2]} 1... Nf6 {[%clk 0:04:57.3]} 2. Nc3 {[%clk 0:04:56.5]}
2... d5 {[%clk 0:04:55.7]} 3. e4 {[%clk 0:04:56]} 3... dxe4 {[%clk 0:04:50.8]}
4. f3 {[%clk 0:04:54.8]} 4... e5 {[%clk 0:04:47.1]} 5. dxe5 {[%clk 0:04:46.3]}
5... Qxd1+ {[%clk 0:04:45.3]} 6. Nxd1 {[%clk 0:04:42.4]} 6... Nfd7 {[%clk
0:04:44.9]} 7. f4 {[%clk 0:04:40]} 7... Nc6 {[%clk 0:04:41.4]} 8. Bb5 {[%clk
0:04:36.8]} 8... Nd4 {[%clk 0:04:36.6]} 9. Bxd7+ {[%clk 0:04:21.9]} 9... Bxd7
{[%clk 0:04:35.2]} 10. Ne3 {[%clk 0:04:21]} 10... Ne6 {[%clk 0:04:28.4]} 11. Nd5
{[%clk 0:04:03]} 11... O-O-O {[%clk 0:04:22.9]} 12. Be3 {[%clk 0:04:01.3]} 12...
Kb8 {[%clk 0:04:14.9]} 13. O-O-O {[%clk 0:03:58.3]} 13... Bc5 {[%clk 0:04:07.6]}
14. f5 {[%clk 0:03:33.4]} 14... Bxe3+ {[%clk 0:04:05.1]} 15. Nxe3 {[%clk
0:03:32.3]} 15... Nf4 {[%clk 0:04:01.1]} 16. g3 {[%clk 0:03:24.9]} 16... Nh5
{[%clk 0:03:54.7]} 17. Ne2 {[%clk 0:03:22.2]} 17... g6 {[%clk 0:03:49.9]} 18. g4
{[%clk 0:03:16.1]} 18... Ng7 {[%clk 0:03:47.9]} 19. Rhf1 {[%clk 0:03:01.2]}
19... Rhe8 {[%clk 0:03:42.1]} 20. f6 {[%clk 0:02:45.4]} 20... Ne6 {[%clk
0:03:37.7]} 21. Nd5 {[%clk 0:02:39.8]} 21... Bc6 {[%clk 0:03:30]} 22. Ne7 {[%clk
0:02:35.2]} 22... Bb5 {[%clk 0:03:15.9]} 23. Rxd8+ {[%clk 0:02:17.5]} 23... Rxd8
{[%clk 0:03:13.1]} 24. Re1 {[%clk 0:02:16.2]} 24... Bxe2 {[%clk 0:02:57]} 25.
Rxe2 {[%clk 0:02:14.2]} 25... Rd4 {[%clk 0:02:41]} 26. c3 {[%clk 0:02:01]} 26...
Rc4 {[%clk 0:02:37.9]} 27. Kb1 {[%clk 0:01:34.6]} 27... Nf4 {[%clk 0:02:33]} 28.
Rd2 {[%clk 0:01:17.9]} 28... a6 {[%clk 0:02:21]} 29. Rd8+ {[%clk 0:01:13.6]}
29... Ka7 {[%clk 0:02:19.8]} 30. Nc8+ {[%clk 0:01:12.5]} 30... Kb8 {[%clk
0:02:16.5]} 31. Nb6+ {[%clk 0:01:11.4]} 31... Ka7 {[%clk 0:02:15.7]} 32. Nxc4
{[%clk 0:01:10.5]} 1-0

[Event "Live Chess"]
[Site "Chess.com"]
[Date "2024.06.01"]
[Round "-"]
[White "ShanthamGrarks"]
[Black "wadsy27"]
[Result "0-1"]
[WhiteElo "1911"]
[BlackElo "2562"]
[TimeControl "300"]
[EndTime "12:49:20 PDT"]
[Termination "wadsy27 won by resignation"]

1. d4 {[%clk 0:04:54.9]} 1... Nf6 {[%clk 0:04:58.3]} 2. Nc3 {[%clk 0:04:53.5]}
2... c5 {[%clk 0:04:58.1]} 3. dxc5 {[%clk 0:04:51.4]} 3... e6 {[%clk 0:04:57.3]}
4. Nf3 {[%clk 0:04:50.6]} 4... Bxc5 {[%clk 0:04:56.8]} 5. e3 {[%clk 0:04:48.3]}
5... d5 {[%clk 0:04:56.4]} 6. Bd3 {[%clk 0:04:47.5]} 6... O-O {[%clk 0:04:56]}
7. O-O {[%clk 0:04:46.2]} 7... Nc6 {[%clk 0:04:55.7]} 8. a3 {[%clk 0:04:44.3]}
8... e5 {[%clk 0:04:55.1]} 9. Bb5 {[%clk 0:04:37.7]} 9... e4 {[%clk 0:04:50.6]}
10. Nd4 {[%clk 0:04:33.2]} 10... Qc7 {[%clk 0:04:45]} 11. Nb3 {[%clk 0:04:24]}
11... Bd6 {[%clk 0:04:19.8]} 12. h3 {[%clk 0:04:14.6]} 12... a6 {[%clk
0:04:15.6]} 13. Be2 {[%clk 0:04:11.3]} 13... Rd8 {[%clk 0:04:13.7]} 14. Nd4
{[%clk 0:04:01.9]} 14... Ne5 {[%clk 0:04:11]} 15. f4 {[%clk 0:03:47]} 15... exf3
{[%clk 0:04:09.3]} 16. Nxf3 {[%clk 0:03:45]} 16... Be6 {[%clk 0:04:04]} 17. Ng5
{[%clk 0:03:41.9]} 17... h6 {[%clk 0:03:46.2]} 18. Nxe6 {[%clk 0:03:39.6]} 18...
fxe6 {[%clk 0:03:46.1]} 19. Qe1 {[%clk 0:03:32.1]} 19... Nc4 {[%clk 0:03:43.9]}
20. Bxc4 {[%clk 0:03:15]} 20... Qxc4 {[%clk 0:03:43.8]} 21. Qe2 {[%clk
0:03:09.6]} 21... Qxe2 {[%clk 0:03:41.5]} 22. Nxe2 {[%clk 0:03:07.9]} 22... Ne4
{[%clk 0:03:41.3]} 23. Nd4 {[%clk 0:03:00.4]} 23... Re8 {[%clk 0:03:40.8]} 24.
b4 {[%clk 0:02:44.1]} 24... Rac8 {[%clk 0:03:37.2]} 25. Bb2 {[%clk 0:02:42]}
25... Be5 {[%clk 0:03:36.1]} 26. Rac1 {[%clk 0:02:29.6]} 26... Nd2 {[%clk
0:03:32.9]} 27. Rf2 {[%clk 0:02:21.4]} 27... Nc4 {[%clk 0:03:32.2]} 28. Rb1
{[%clk 0:02:17]} 28... Nxe3 {[%clk 0:03:23.2]} 29. Re1 {[%clk 0:02:15.9]} 29...
Bxd4 {[%clk 0:03:21.2]} 30. Bxd4 {[%clk 0:02:12.5]} 30... Nxc2 {[%clk
0:03:20.8]} 31. Rd1 {[%clk 0:02:07.6]} 31... Nxd4 {[%clk 0:03:20.3]} 32. Rxd4
{[%clk 0:02:06.7]} 32... Rc4 {[%clk 0:03:19.4]} 33. Rfd2 {[%clk 0:01:59.2]}
33... Rxd4 {[%clk 0:03:18.7]} 34. Rxd4 {[%clk 0:01:58.6]} 34... Kf7 {[%clk
0:03:18.5]} 35. Kf2 {[%clk 0:01:57]} 35... Ke7 {[%clk 0:03:18.2]} 36. Ke3 {[%clk
0:01:56.5]} 36... Kd6 {[%clk 0:03:18]} 37. Rd2 {[%clk 0:01:55.3]} 37... e5
{[%clk 0:03:17.8]} 38. Rf2 {[%clk 0:01:52.4]} 38... Rc8 {[%clk 0:03:15.9]} 39.
Rf7 {[%clk 0:01:49.7]} 39... Rc7 {[%clk 0:03:15.7]} 40. Rf8 {[%clk 0:01:49]}
40... Rc3+ {[%clk 0:03:14.5]} 41. Kd2 {[%clk 0:01:46.9]} 41... Rxa3 {[%clk
0:03:14.1]} 42. Rf7 {[%clk 0:01:45.5]} 42... d4 {[%clk 0:03:13.3]} 43. Rxb7
{[%clk 0:01:42.2]} 43... e4 {[%clk 0:03:13.1]} 44. Rxg7 {[%clk 0:01:40]} 44...
Ra2+ {[%clk 0:03:12.8]} 45. Ke1 {[%clk 0:01:38.2]} 45... d3 {[%clk 0:03:12.5]}
46. Rg3 {[%clk 0:01:32.6]} 46... Kd5 {[%clk 0:03:11.8]} 0-1

[Event "Live Chess"]
[Site "Chess.com"]
[Date "2024.06.01"]
[Round "-"]
[White "degringolade64"]
[Black "LL220284LL"]
[Result "0-1"]
[WhiteElo "2136"]
[BlackElo "2551"]
[TimeControl "300"]
[EndTime "12:49:23 PDT"]
[Termination "LL220284LL won by checkmate"]

1. e4 {[%clk 0:04:56.4]} 1... d5 {[%clk 0:04:58.8]} 2. exd5 {[%clk 0:04:54.7]}
2... Qxd5 {[%clk 0:04:58.7]} 3. Nc3 {[%clk 0:04:53.1]} 3... Qa5 {[%clk
0:04:57.9]} 4. d4 {[%clk 0:04:51.1]} 4... c6 {[%clk 0:04:57]} 5. Nf3 {[%clk
0:04:45.5]} 5... Nf6 {[%clk 0:04:56.2]} 6. Bc4 {[%clk 0:04:43.1]} 6... Bf5
{[%clk 0:04:55]} 7. Ne5 {[%clk 0:04:33.3]} 7... e6 {[%clk 0:04:53.6]} 8. g4
{[%clk 0:04:31.5]} 8... Be4 {[%clk 0:04:52.7]} 9. O-O {[%clk 0:04:23.4]} 9...
Bd5 {[%clk 0:04:48]} 10. Nxd5 {[%clk 0:04:18.9]} 10... cxd5 {[%clk 0:04:47.9]}
11. Bd3 {[%clk 0:04:16.9]} 11... Bd6 {[%clk 0:04:44.7]} 12. Bd2 {[%clk
0:04:04.9]} 12... Qc7 {[%clk 0:04:42.5]} 13. f4 {[%clk 0:04:02.5]} 13... Nc6
{[%clk 0:04:38.9]} 14. c3 {[%clk 0:04:00.9]} 14... Nd7 {[%clk 0:04:16.9]} 15.
Qe2 {[%clk 0:03:46.1]} 15... Ncxe5 {[%clk 0:04:15.6]} 16. fxe5 {[%clk
0:03:44.9]} 16... Be7 {[%clk 0:04:10.7]} 17. Rf3 {[%clk 0:03:34.5]} 17... Rf8
{[%clk 0:04:01.7]} 18. Raf1 {[%clk 0:03:32.4]} 18... Qb6 {[%clk 0:03:55.2]} 19.
b4 {[%clk 0:03:22.1]} 19... a5 {[%clk 0:03:52]} 20. b5 {[%clk 0:03:17.8]} 20...
a4 {[%clk 0:03:48]} 21. Qf2 {[%clk 0:02:55.3]} 21... f5 {[%clk 0:03:44.8]} 22.
gxf5 {[%clk 0:02:50.6]} 22... O-O-O {[%clk 0:03:31.3]} 23. Qg2 {[%clk
0:02:28.2]} 23... Nxe5 {[%clk 0:03:16.7]} 24. Re3 {[%clk 0:02:20.5]} 24... Nxd3
{[%clk 0:03:12.5]} 25. Rxe6 {[%clk 0:02:06]} 25... Qc7 {[%clk 0:03:01.2]} 26.
Qe2 {[%clk 0:02:01.3]} 26... Bd6 {[%clk 0:02:53.9]} 27. Qxd3 {[%clk 0:01:53.4]}
27... Bxh2+ {[%clk 0:02:53]} 28. Kh1 {[%clk 0:01:52.7]} 28... Bd6 {[%clk
0:02:50.2]} 29. Rc1 {[%clk 0:01:47.5]} 29... Qf7 {[%clk 0:02:47.4]} 30. Qh3
{[%clk 0:01:37.9]} 30... Qxf5 {[%clk 0:02:42.7]} 31. Qxf5 {[%clk 0:01:36.4]}
31... Rxf5 {[%clk 0:02:42.6]} 32. c4 {[%clk 0:01:35.3]} 32... Ba3 {[%clk
0:02:33.3]} 33. Rg1 {[%clk 0:01:20.6]} 33... Rh5+ {[%clk 0:02:28.2]} 34. Kg2
{[%clk 0:01:19.1]} 34... dxc4 {[%clk 0:02:26.7]} 35. Bf4 {[%clk 0:01:13.1]}
35... Rf8 {[%clk 0:02:21.2]} 36. Kf3 {[%clk 0:01:10]} 36... g5 {[%clk
0:02:16.6]} 37. Kg4 {[%clk 0:01:02.6]} 37... Rh4+ {[%clk 0:02:12.9]} 38. Kxg5
{[%clk 0:01:01.8]} 38... Rhxf4 {[%clk 0:02:12.8]} 39. Rh1 {[%clk 0:00:54.5]}
39... R8f5+ {[%clk 0:02:09.3]} 40. Kh6 {[%clk 0:00:52.4]} 40... Kd7 {[%clk
0:02:02.5]} 41. Rb6 {[%clk 0:00:47.5]} 41... Kc7 {[%clk 0:02:00]} 42. Re6 {[%clk
0:00:45.5]} 42... Rf7 {[%clk 0:01:55.8]} 43. Rh5 {[%clk 0:00:39.5]} 43... Bf8+
{[%clk 0:01:53]} 44. Kg5 {[%clk 0:00:36]} 44... R7f5# {[%clk 0:01:52.4]} 0-1

[Event "Live Chess"]
[Site "Chess.com"]
[Date "2024.06.01"]
[Round "-"]
[White "nffc11"]
[Black "Sweet-O"]
[Result "1-0"]
[WhiteElo "2020"]
[BlackElo "1555"]
[TimeControl "300"]
[EndTime "12:49:49 PDT"]
[Termination "nffc11 won by resignation"]

1. d4 {[%clk 0:04:55.7]} 1... c5 {[%clk 0:04:57.8]} 2. e3 {[%clk 0:04:52.2]}
2... cxd4 {[%clk 0:04:56]} 3. exd4 {[%clk 0:04:51.5]} 3... e6 {[%clk 0:04:55.8]}
4. Bd3 {[%clk 0:04:49.6]} 4... Nf6 {[%clk 0:04:55.4]} 5. Nf3 {[%clk 0:04:48.8]}
5... Be7 {[%clk 0:04:55]} 6. O-O {[%clk 0:04:48.6]} 6... O-O {[%clk 0:04:54.2]}
7. c4 {[%clk 0:04:46.9]} 7... d6 {[%clk 0:04:53.2]} 8. Nc3 {[%clk 0:04:46.4]}
8... Ng4 {[%clk 0:04:47.3]} 9. h3 {[%clk 0:04:44.2]} 9... h5 {[%clk 0:04:43.6]}
10. hxg4 {[%clk 0:04:37.2]} 10... hxg4 {[%clk 0:04:43.5]} 11. Nd2 {[%clk
0:04:34.9]} 11... e5 {[%clk 0:04:42.1]} 12. dxe5 {[%clk 0:04:22.5]} 12... dxe5
{[%clk 0:04:42]} 13. Nd5 {[%clk 0:04:15.9]} 13... Bd6 {[%clk 0:04:33.4]} 14. Ne4
{[%clk 0:04:12.4]} 14... Nc6 {[%clk 0:04:13.5]} 15. Qd2 {[%clk 0:03:28]} 15...
Bb8 {[%clk 0:04:09.5]} 16. Qg5 {[%clk 0:03:23.1]} 16... f5 {[%clk 0:03:57.8]}
17. Qxd8 {[%clk 0:03:05.1]} 17... Nxd8 {[%clk 0:03:48.1]} 18. Nec3 {[%clk
0:03:01.4]} 18... e4 {[%clk 0:03:44.3]} 19. Bc2 {[%clk 0:02:57.3]} 19... Kf7
{[%clk 0:03:29.5]} 20. g3 {[%clk 0:02:54]} 20... Rh8 {[%clk 0:03:23.8]} 21. Kg2
{[%clk 0:02:51.5]} 21... Ne6 {[%clk 0:03:13.5]} 22. Be3 {[%clk 0:02:42.8]} 22...
Be5 {[%clk 0:03:01.7]} 23. Rh1 {[%clk 0:02:41.1]} 23... Bd7 {[%clk 0:02:57.6]}
24. Rxh8 {[%clk 0:02:31.1]} 24... Rxh8 {[%clk 0:02:57.5]} 25. Rh1 {[%clk
0:02:29.5]} 25... Rxh1 {[%clk 0:02:51.7]} 26. Kxh1 {[%clk 0:02:28.5]} 26... Bd4
{[%clk 0:02:49.8]} 27. Kg2 {[%clk 0:02:18]} 27... b6 {[%clk 0:02:28.5]} 28. Ba4
{[%clk 0:02:13.5]} 28... Bxa4 {[%clk 0:02:25.2]} 29. Nxa4 {[%clk 0:02:12.6]}
29... Ke8 {[%clk 0:02:15.9]} 30. Nc7+ {[%clk 0:02:05.1]} 30... Nxc7 {[%clk
0:02:14]} 31. Bxd4 {[%clk 0:02:04.6]} 31... g6 {[%clk 0:02:11.8]} 32. Nc3 {[%clk
0:02:01.7]} 32... Kd7 {[%clk 0:02:10.4]} 33. Kf1 {[%clk 0:02:00.1]} 33... Kc6
{[%clk 0:02:08.6]} 34. Ke2 {[%clk 0:01:58.6]} 34... a6 {[%clk 0:02:07.2]} 35.
Ke3 {[%clk 0:01:52]} 35... g5 {[%clk 0:02:05.5]} 36. Ne2 {[%clk 0:01:50.3]}
36... b5 {[%clk 0:02:04.7]} 37. cxb5+ {[%clk 0:01:49]} 37... Nxb5 {[%clk
0:02:03.2]} 38. Bf6 {[%clk 0:01:48.4]} 38... Nd6 {[%clk 0:01:51.8]} 39. Bxg5
{[%clk 0:01:41.3]} 39... Nc4+ {[%clk 0:01:51.3]} 40. Kf4 {[%clk 0:01:39.6]}
40... Nxb2 {[%clk 0:01:51.2]} 41. Kxf5 {[%clk 0:01:38.1]} 41... Kc5 {[%clk
0:01:45.7]} 42. Kxe4 {[%clk 0:01:35.7]} 42... Kb4 {[%clk 0:01:45.2]} 43. Bf6
{[%clk 0:01:28.4]} 43... Nc4 {[%clk 0:01:42.2]} 44. Kf4 {[%clk 0:01:26.2]} 44...
Nb6 {[%clk 0:01:35.8]} 45. Kxg4 {[%clk 0:01:23]} 45... Nd5 {[%clk 0:01:34.1]}
46. Bb2 {[%clk 0:01:20.1]} 46... a5 {[%clk 0:01:29.9]} 47. f4 {[%clk 0:01:18.5]}
47... a4 {[%clk 0:01:27]} 48. f5 {[%clk 0:01:17.9]} 48... a3 {[%clk 0:01:18.4]}
49. Bc1 {[%clk 0:01:16.5]} 49... Nf6+ {[%clk 0:01:13.2]} 50. Kf4 {[%clk
0:01:12.7]} 50... Kc4 {[%clk 0:01:06.3]} 51. Bxa3 {[%clk 0:01:08.9]} 51... Kd3
{[%clk 0:01:05.8]} 52. Ng1 {[%clk 0:01:06.3]} 52... Kc2 {[%clk 0:01:02.3]} 53.
g4 {[%clk 0:01:05.4]} 53... Kb1 {[%clk 0:01:00.5]} 54. g5 {[%clk 0:01:04.6]}
54... Nd5+ {[%clk 0:00:59.7]} 55. Ke5 {[%clk 0:01:03.9]} 55... Ne3 {[%clk
0:00:55.4]} 56. f6 {[%clk 0:01:02.9]} 56... Ng4+ {[%clk 0:00:54.9]} 57. Kf5
{[%clk 0:01:01.3]} 57... Ne3+ {[%clk 0:00:52.9]} 58. Ke6 {[%clk 0:01:00]} 58...
Nc4 {[%clk 0:00:51]} 59. f7 {[%clk 0:00:58.3]} 1-0

[Event "Live Chess"]
[Site "Chess.com"]
[Date "2024.06.01"]
[Round "-"]
[White "matt1979"]
[Black "agamilewska"]
[Result "1-0"]
[WhiteElo "1401"]
[BlackElo "1758"]
[TimeControl "300"]
[EndTime "12:50:02 PDT"]
[Termination "matt1979 won by checkmate"]

1. f4 {[%clk 0:04:56.1]} 1... d5 {[%clk 0:04:58.4]} 2. e3 {[%clk 0:04:54]} 2...
Nf6 {[%clk 0:04:57.8]} 3. Nf3 {[%clk 0:04:52.7]} 3... e6 {[%clk 0:04:57.1]} 4.
b3 {[%clk 0:04:49.6]} 4... c5 {[%clk 0:04:56.5]} 5. Bb2 {[%clk 0:04:48.5]} 5...
Nc6 {[%clk 0:04:55.1]} 6. Bb5 {[%clk 0:04:47.4]} 6... Bd7 {[%clk 0:04:53.8]} 7.
Bxc6 {[%clk 0:04:45.6]} 7... Bxc6 {[%clk 0:04:53.7]} 8. Ne5 {[%clk 0:04:44.7]}
8... Bd6 {[%clk 0:04:51.9]} 9. O-O {[%clk 0:04:42.5]} 9... O-O {[%clk
0:04:49.1]} 10. Nxc6 {[%clk 0:04:39.5]} 10... bxc6 {[%clk 0:04:48]} 11. Qe1
{[%clk 0:04:38.1]} 11... Ne4 {[%clk 0:04:39.7]} 12. d3 {[%clk 0:04:34.9]} 12...
Nf6 {[%clk 0:04:33.9]} 13. Qh4 {[%clk 0:04:31.9]} 13... Be7 {[%clk 0:04:28.9]}
14. Qh3 {[%clk 0:04:26.4]} 14... d4 {[%clk 0:04:26.9]} 15. e4 {[%clk 0:04:24.9]}
15... g6 {[%clk 0:04:18.2]} 16. Rf3 {[%clk 0:04:16.8]} 16... Nh5 {[%clk
0:04:16.9]} 17. g4 {[%clk 0:04:11.7]} 17... Ng7 {[%clk 0:04:12.6]} 18. Qh6
{[%clk 0:03:59]} 18... f5 {[%clk 0:03:52.3]} 19. Rh3 {[%clk 0:03:37.2]} 19...
Kf7 {[%clk 0:03:48.4]} 20. g5 {[%clk 0:03:23.7]} 20... fxe4 {[%clk 0:03:44]} 21.
dxe4 {[%clk 0:03:14.6]} 21... e5 {[%clk 0:03:32.1]} 22. Bc1 {[%clk 0:02:44.9]}
22... exf4 {[%clk 0:02:59.1]} 23. Bxf4 {[%clk 0:02:43.2]} 23... d3 {[%clk
0:02:53.5]} 24. Be5 {[%clk 0:02:28.3]} 24... Rg8 {[%clk 0:02:46.1]} 25. Rxd3
{[%clk 0:02:02.8]} 25... Qa5 {[%clk 0:02:38.9]} 26. Nc3 {[%clk 0:01:50]} 26...
Bf8 {[%clk 0:02:00.5]} 27. Rf1+ {[%clk 0:01:43.9]} 27... Ke6 {[%clk 0:01:57.7]}
28. Bxg7 {[%clk 0:01:28.8]} 28... Bxg7 {[%clk 0:01:52.4]} 29. Qh3+ {[%clk
0:01:26.6]} 29... Ke7 {[%clk 0:01:50.9]} 30. Qd7# {[%clk 0:01:21.4]} 1-0